Department Family,Date Paid,Expense Type,Expense Area,Supplier,Transaction Number,Amount,Vat Inclusive
Crown Prosecution Service ,02/11/21,Recoverable VAT control,Balance Sheet,Government Property Agency London,00000001/13069,"5,221.79",Y
Crown Prosecution Service ,02/11/21,Facilities management,Estate and FM: Programme,Government Property Agency London,00000001/13069,"26,108.94",
Crown Prosecution Service ,02/11/21,Crown Court Graduated Fee Scheme,West Midlands Complex Casework Unit,6 Kings Bench Walk- Chambers of D Fisher & D Perry,100869 Vale,"88,416.12",Y
Crown Prosecution Service ,02/11/21,FCO platform charges excluding leases,International Liaison Magistrates,Foreign And Commonwealth Office,1139159,"6,000.00",
Crown Prosecution Service ,02/11/21,Overseas Residential accommodation,International External Funding,Foreign And Commonwealth Office,1139159,"7,125.00",
Crown Prosecution Service ,02/11/21,Overseas Residential accommodation,International External Funding,Foreign And Commonwealth Office,1139159,"5,750.00",
Crown Prosecution Service ,02/11/21,FCO platform charges excluding leases,International External Funding,Foreign And Commonwealth Office,1139159,"10,350.00",
Crown Prosecution Service ,02/11/21,Overseas Residential accommodation,International External Funding,Foreign And Commonwealth Office,1139159,"4,907.75",
Crown Prosecution Service ,02/11/21,FCO platform charges excluding leases,International External Funding,Foreign And Commonwealth Office,1139159,"5,625.00",
Crown Prosecution Service ,02/11/21,FCO platform charges excluding leases,International External Funding,Foreign And Commonwealth Office,1139159,"5,125.00",
Crown Prosecution Service ,02/11/21,Overseas Residential accommodation,International Liaison Magistrates,Foreign And Commonwealth Office,1139159,"45,305.82",
Crown Prosecution Service ,02/11/21,FCO platform charges excluding leases,International External Funding,Foreign And Commonwealth Office,1139159,"7,325.00",
Crown Prosecution Service ,02/11/21,Overseas Residential accommodation,International External Funding,Foreign And Commonwealth Office,1139159,"4,800.00",
Crown Prosecution Service ,02/11/21,FCO platform charges excluding leases,International Liaison Magistrates,Foreign And Commonwealth Office,1139159,"20,100.00",
Crown Prosecution Service ,02/11/21,Overseas Residential accommodation,International Liaison Magistrates,Foreign And Commonwealth Office,1139159,"11,575.00",
Crown Prosecution Service ,02/11/21,Overseas Residential accommodation,International Liaison Magistrates,Foreign And Commonwealth Office,1139159,"6,700.00",
Crown Prosecution Service ,02/11/21,FCO platform charges excluding leases,International Liaison Magistrates,Foreign And Commonwealth Office,1139159,"11,775.00",
Crown Prosecution Service ,02/11/21,Overseas Residential accommodation,International External Funding,Foreign And Commonwealth Office,1139159,"6,375.00",
Crown Prosecution Service ,02/11/21,Overseas Residential accommodation,International Liaison Magistrates,Foreign And Commonwealth Office,1139159,"13,725.00",
Crown Prosecution Service ,02/11/21,FCO platform charges excluding leases,International External Funding,Foreign And Commonwealth Office,1139159,"9,100.00",
Crown Prosecution Service ,02/11/21,FCO platform charges excluding leases,International External Funding,Foreign And Commonwealth Office,1139159,"9,750.00",
Crown Prosecution Service ,02/11/21,FCO platform charges excluding leases,International External Funding,Foreign And Commonwealth Office,1139159,"9,200.00",
Crown Prosecution Service ,02/11/21,FCO platform charges excluding leases,International Liaison Magistrates,Foreign And Commonwealth Office,1139159,"14,400.00",
Crown Prosecution Service ,02/11/21,Overseas Residential accommodation,International External Funding,Foreign And Commonwealth Office,1139159,"4,600.00",
Crown Prosecution Service ,02/11/21,FCO platform charges excluding leases,International External Funding,Foreign And Commonwealth Office,1139159,"11,750.00",
Crown Prosecution Service ,02/11/21,Overseas Residential accommodation,International External Funding,Foreign And Commonwealth Office,1139159,"5,575.00",
Crown Prosecution Service ,02/11/21,FCO platform charges excluding leases,International External Funding,Foreign And Commonwealth Office,1139159,"6,888.50",
Crown Prosecution Service ,02/11/21,Overseas Residential accommodation,International External Funding,Foreign And Commonwealth Office,1139159,"15,575.00",
Crown Prosecution Service ,02/11/21,FCO platform charges excluding leases,International External Funding,Foreign And Commonwealth Office,1139159,"12,600.00",
Crown Prosecution Service ,02/11/21,FCO platform charges excluding leases,International Liaison Magistrates,Foreign And Commonwealth Office,1139159,"3,229.62",
Crown Prosecution Service ,02/11/21,FCO platform charges excluding leases,International External Funding,Foreign And Commonwealth Office,1139159,"16,400.00",
Crown Prosecution Service ,02/11/21,FCO platform charges excluding leases,International External Funding,Foreign And Commonwealth Office,1139159,"15,475.00",
Crown Prosecution Service ,02/11/21,FCO platform charges excluding leases,International External Funding,Foreign And Commonwealth Office,1139159,"11,700.00",
Crown Prosecution Service ,02/11/21,Overseas Residential accommodation,International External Funding,Foreign And Commonwealth Office,1139159,"8,325.00",
Crown Prosecution Service ,02/11/21,Overseas Residential accommodation,International Liaison Magistrates,Foreign And Commonwealth Office,1139159,"9,575.00",
Crown Prosecution Service ,02/11/21,Overseas Residential accommodation,International External Funding,Foreign And Commonwealth Office,1139159,"7,100.00",
Crown Prosecution Service ,02/11/21,FCO platform charges excluding leases,International Liaison Magistrates,Foreign And Commonwealth Office,1139159,"8,200.00",
Crown Prosecution Service ,02/11/21,Overseas Residential accommodation,International External Funding,Foreign And Commonwealth Office,1139159,"4,650.00",
Crown Prosecution Service ,02/11/21,Crown Court Graduated Fee Scheme,West Midlands Complex Casework Unit,No 5 Fountain Court Chambers,786579/HSS/DAAHIR,"44,327.04",Y
Crown Prosecution Service ,02/11/21,Apprenticeship Levy payments Permanent,Other Corporate Admin Payments,HM Revenue and Customs,948PB000021422207,"6,918.42",
Crown Prosecution Service ,02/11/21,Apprenticeship Levy payments Permanent,Other Corporate Programme Payments,HM Revenue and Customs,948PB000021422207,"108,388.58",
Crown Prosecution Service ,02/11/21,National Insurance payable,Balance Sheet,HM Revenue and Customs,948PB000021422207,"4,260,751.25",
Crown Prosecution Service ,02/11/21,PAYE payable,Balance Sheet,HM Revenue and Customs,948PB000021422207,"3,390,711.56",
Crown Prosecution Service ,02/11/21,Crown Court Graduated Fee Scheme,London North Complex Casework Unit,5 King's Bench Walk,AOQC170517,"38,988.00",Y
Crown Prosecution Service ,02/11/21,Crown Court Graduated Fee Scheme,London North Complex Casework Unit,5 King's Bench Walk,CNQC174067.Trial,"29,067.00",Y
Crown Prosecution Service ,03/11/21,Crown Court Very High Cost Cases Full Scheme,Organised Crime London,23 Essex Street Chambers,176414-ALH-24/6,"30,111.32",Y
Crown Prosecution Service ,03/11/21,Crown Court Graduated Fee Scheme,East Midlands Complex Casework Unit,36 Bedford Row,201564-CFR-Trial,"32,242.32",Y
Crown Prosecution Service ,03/11/21,Crown Court Graduated Fee Scheme,East Midlands Complex Casework Unit,36 Bedford Row,201564-NH-Trial,"47,366.04",Y
Crown Prosecution Service ,03/11/21,Crown Court Graduated Fee Scheme,Wessex Crown Court Unit,Pump Court Chambers - 3 Pump Court,258302-MRU,"47,869.38",Y
Crown Prosecution Service ,03/11/21,Crown Court Graduated Fee Scheme,Wessex Crown Court Unit,Pump Court Chambers - 3 Pump Court,258302-RTUTT,"32,711.34",Y
Crown Prosecution Service ,03/11/21,Recoverable VAT control,Balance Sheet,FlyForm LTD Cardiff,INV-10473,"4,379.21",Y
Crown Prosecution Service ,03/11/21,IT services,DTS Programme Project Cost,FlyForm LTD Cardiff,INV-10473,"21,895.99",
Crown Prosecution Service ,04/11/21,IT non capital software licences,Commercial,Jaggaer London,0000000010,"120,144.00",Y
Crown Prosecution Service ,04/11/21,Recoverable VAT control,Balance Sheet,Mendip Media Group Ltd Tiverton,0000000179,"5,680.80",Y
Crown Prosecution Service ,04/11/21,Transcriptions and Translation,Other Corporate Programme Payments,Mendip Media Group Ltd Tiverton,0000000179,"28,404.00",
Crown Prosecution Service ,04/11/21,Crown Court Graduated Fee Scheme,London North Complex Casework Unit,3 Raymond Buildings,RWD/250011,"30,617.40",Y
Crown Prosecution Service ,05/11/21,Recoverable VAT control,Balance Sheet,Government Property Agency London,00000001/12819,"6,106.94",Y
Crown Prosecution Service ,05/11/21,Facilities management,Estate and FM: Programme,Government Property Agency London,00000001/12819,"30,534.67",
Crown Prosecution Service ,05/11/21,Landlord service charge,Estate and FM: Programme,Government Property Agency London,00000001/12819,"90,680.06",
Crown Prosecution Service ,05/11/21,Recoverable VAT control,Balance Sheet,Iron Mountain Ltd,0682502,"19,942.89",Y
Crown Prosecution Service ,05/11/21,Other managed/contractor services,Records Management Unit,Iron Mountain Ltd,0682502,"99,714.46",
Crown Prosecution Service ,05/11/21,Crown Court Very High Cost Cases Full Scheme,Organised Crime North,Lincoln House Chambers,234999 AT 10,"25,015.00",Y
Crown Prosecution Service ,05/11/21,Professional subscriptions and memberships,North West Crown Court Hub,Law Society,INV200613660,"28,196.00",
Crown Prosecution Service ,08/11/21,Crown Court Graduated Fee Scheme,East Midlands Crown Court Section,Seven Bedford Row,189997,"56,793.00",Y
Crown Prosecution Service ,08/11/21,Crown Court Graduated Fee Scheme,East Midlands Crown Court Section,36 Bedford Row,208374/MJR2,"27,649.20",Y
Crown Prosecution Service ,08/11/21,Recoverable VAT control,Balance Sheet,WIPRO Holdings London,83066057,"8,983.92",Y
Crown Prosecution Service ,08/11/21,IT services,End User Computing Contract,WIPRO Holdings London,83066057,"44,919.60",
Crown Prosecution Service ,08/11/21,IT services,DTS Programme Project Cost,CGI IT UK Ltd,GB014069100,"26,030.80",Y
Crown Prosecution Service ,08/11/21,Recoverable VAT control,Balance Sheet,CGI IT UK Ltd,GB014069232,"115,059.96",Y
Crown Prosecution Service ,08/11/21,IT services,Apps and Hosting Contract,CGI IT UK Ltd,GB014069232,"575,299.78",
Crown Prosecution Service ,08/11/21,IT services,DTS Programme Project Cost,Green Lemon Company Ltd Haywards Heath,GLC_Invoice_2021-10_380,"69,600.00",Y
Crown Prosecution Service ,08/11/21,Professional subscriptions and memberships,West Midlands Area Business Centre,Law Society,INV200602255,"28,462.00",
Crown Prosecution Service ,09/11/21,New Works: non capital,Estate and FM: Programme,Blenheim House Construction Limited Chertsey,4643,"63,994.90",Y
Crown Prosecution Service ,09/11/21,Professional subscriptions and memberships,CPS Direct Out of Hours Prosecutors,Law Society,INV200614036,"39,368.00",
Crown Prosecution Service ,10/11/21,Lease liability non current lease payments,Balance Sheet,Government Property Agency London,00000001/13103,"61,800.02",
Crown Prosecution Service ,10/11/21,Lease liability non current lease payments,Balance Sheet,Government Property Agency London,00000001/7150,"34,727.10",
Crown Prosecution Service ,10/11/21,National non domestic rates,Estate and FM: Programme,Government Property Agency London,00000001/8581,"49,436.14",
Crown Prosecution Service ,10/11/21,Accommodation rental costs (non-IFRS16),Estate and FM: Programme,Government Property Agency London,00000001/8581,"12,000.00",
Crown Prosecution Service ,10/11/21,Landlord service charge,Estate and FM: Programme,Government Property Agency London,00000001/8581,599.04,
Crown Prosecution Service ,10/11/21,Crown Court Graduated Fee Scheme,Thames Chiltern Crown Court Unit,Red Lion Chambers (18 RLC),154993KBjulytrial,"64,420.06",Y
Crown Prosecution Service ,10/11/21,New Works: non capital,Estate and FM: Programme,IPT Property Holdings Limited Dorking,324192,"31,650.00",Y
Crown Prosecution Service ,10/11/21,Professional subscriptions and memberships,East of England Area Business Centre,Law Society,INV200620327,"27,821.00",
Crown Prosecution Service ,10/11/21,Crown Court Very High Cost Cases Full Scheme,London South Complex Casework Unit,5 King's Bench Walk,JB170075.Trial,"26,652.00",Y
Crown Prosecution Service ,11/11/21,External legal advice - HR casework,Litigation,Government Legal Department,499827,"39,113.36",Y
Crown Prosecution Service ,11/11/21,Crown Court Graduated Fee Scheme,West Midlands Crown Court Unit,No 5 Fountain Court Chambers,789784/EPI/HURT,"26,941.68",Y
Crown Prosecution Service ,11/11/21,Crown Court Graduated Fee Scheme,West Midlands Crown Court Unit,No 5 Fountain Court Chambers,789784/MPB/HURT,"50,472.12",Y
Crown Prosecution Service ,12/11/21,National non domestic rates,Estate and FM: Programme,Government Property Agency London,00000001/12403,"52,944.75",
Crown Prosecution Service ,12/11/21,Reactive Maintenance,Estate and FM: Programme,Government Property Agency London,00000001/12829,"71,671.31",Y
Crown Prosecution Service ,12/11/21,Recoverable VAT control,Balance Sheet,Government Property Agency London,00000001/12830,"7,155.97",Y
Crown Prosecution Service ,12/11/21,Facilities management,Estate and FM: Programme,Government Property Agency London,00000001/12830,"7,849.00",
Crown Prosecution Service ,12/11/21,Reactive Maintenance,Estate and FM: Administration,Government Property Agency London,00000001/12830,613.47,
Crown Prosecution Service ,12/11/21,Reactive Maintenance,Estate and FM: Programme,Government Property Agency London,00000001/12830,"27,317.40",
Crown Prosecution Service ,12/11/21,Crown Court Graduated Fee Scheme,London North Crown Court Unit,5 Paper Buildings,114767/JJM2,"30,677.64",Y
Crown Prosecution Service ,12/11/21,Crown Court Graduated Fee Scheme,West Midlands Crown Court Unit,New Park Court Chambers Leeds,359846/AMQC,"45,090.96",Y
Crown Prosecution Service ,12/11/21,Professional subscriptions and memberships,North East Area Business Centre,Law Society,INV200601097REPAY,"26,962.00",
Crown Prosecution Service ,15/11/21,IT services,DTS Programme Project Cost,Brightwire Technology Services Ltd Peebles,0000000034,"34,740.00",Y
Crown Prosecution Service ,15/11/21,National non domestic rates,Estate and FM: Programme,Government Property Agency London,00000001/12405,"118,397.26",
Crown Prosecution Service ,15/11/21,National non domestic rates,Estate and FM: Programme,Government Property Agency London,00000001/12408,"30,798.00",
Crown Prosecution Service ,15/11/21,Crown Court Graduated Fee Scheme,Yorkshire and Humberside Complex Casework Unit,Broadway House Chambers,214202-5/sw,"66,094.32",Y
Crown Prosecution Service ,15/11/21,Crown Court Graduated Fee Scheme,Yorkshire and Humberside Complex Casework Unit,Broadway House Chambers,214202-6/AL,"33,834.42",Y
Crown Prosecution Service ,15/11/21,Recoverable VAT control,Balance Sheet,Lumen Technologies UK Ltd,250143819/1060288,"30,004.34",Y
Crown Prosecution Service ,15/11/21,IT services,PSN Services Contract,Lumen Technologies UK Ltd,250143819/1060288,"150,021.70",
Crown Prosecution Service ,15/11/21,Recoverable VAT control,Balance Sheet,Lumen Technologies UK Ltd,250155106/1059620,"26,018.60",Y
Crown Prosecution Service ,15/11/21,IT services,PSN Connectivity Contract,Lumen Technologies UK Ltd,250155106/1059620,"130,093.03",
Crown Prosecution Service ,15/11/21,Recoverable VAT control,Balance Sheet,Oracle Corporation UK Ltd,460002515,"18,640.35",Y
Crown Prosecution Service ,15/11/21,IT non capital software licences,Legal Reference and ICT Licenses,Oracle Corporation UK Ltd,460002515,"93,201.77",
Crown Prosecution Service ,15/11/21,Recoverable VAT control,Balance Sheet,WIPRO Holdings London,83067744,"24,955.30",Y
Crown Prosecution Service ,15/11/21,IT services,End User Computing Contract,WIPRO Holdings London,83067744,"124,776.50",
Crown Prosecution Service ,15/11/21,Recoverable VAT control,Balance Sheet,WIPRO Holdings London,83067745,"8,334.56",Y
Crown Prosecution Service ,15/11/21,IT services,End User Computing Contract,WIPRO Holdings London,83067745,"41,672.78",
Crown Prosecution Service ,15/11/21,Recoverable VAT control,Balance Sheet,WIPRO Holdings London,83067746,"7,359.88",Y
Crown Prosecution Service ,15/11/21,IT services,End User Computing Contract,WIPRO Holdings London,83067746,"36,799.41",
Crown Prosecution Service ,15/11/21,IT services,DTS Programme Project Cost,eSynergy Solutions Ltd,INV00000323,"151,110.00",Y
Crown Prosecution Service ,15/11/21,IT services,DTS Programme Project Cost,eSynergy Solutions Ltd,INV00000349,"210,528.00",Y
Crown Prosecution Service ,15/11/21,Professional subscriptions and memberships,Cymru Wales North Crown Court,Law Society,INV200622733,"2,394.00",
Crown Prosecution Service ,15/11/21,Professional subscriptions and memberships,Cymru Wales South East Magistrates Court,Law Society,INV200622733,"5,586.00",
Crown Prosecution Service ,15/11/21,Professional subscriptions and memberships,Cymru Wales Complex Casework Unit,Law Society,INV200622733,"1,862.00",
Crown Prosecution Service ,15/11/21,Professional subscriptions and memberships,Cymru Wales Management Team,Law Society,INV200622733,"1,596.00",
Crown Prosecution Service ,15/11/21,Professional subscriptions and memberships,Cymru Wales Fraud Unit,Law Society,INV200622733,"1,330.00",
Crown Prosecution Service ,15/11/21,Professional subscriptions and memberships,Cymru Wales West Magistrates Court,Law Society,INV200622733,"2,394.00",
Crown Prosecution Service ,15/11/21,Professional subscriptions and memberships,Cymru Wales RASSO unit,Law Society,INV200622733,"4,522.00",
Crown Prosecution Service ,15/11/21,Professional subscriptions and memberships,Cymru Wales North Magistrates Court,Law Society,INV200622733,"4,256.00",
Crown Prosecution Service ,15/11/21,Professional subscriptions and memberships,Cymru Wales West Crown Court,Law Society,INV200622733,"2,926.00",
Crown Prosecution Service ,15/11/21,Professional subscriptions and memberships,Cymru Wales South East Crown Court,Law Society,INV200622733,"5,320.00",
Crown Prosecution Service ,15/11/21,Office equipment and furniture Non capital purchases,Estate and FM: Administration,Senator International Ltd Lancashire,S01702402,"16,142.34",Y
Crown Prosecution Service ,15/11/21,Office equipment and furniture Non capital purchases,Estate and FM: Programme,Senator International Ltd Lancashire,S01702402,"16,142.34",Y
Crown Prosecution Service ,16/11/21,Lease liability non current lease payments,Balance Sheet,Government Property Agency London,00000001/11397,"72,622.03",
Crown Prosecution Service ,16/11/21,Crown Court Graduated Fee Scheme,North East Crown Court Unit,Park Square Barristers (No 6 and Sovereign merged),457872/PMQC/TRL,"55,767.00",Y
Crown Prosecution Service ,16/11/21,Recoverable VAT control,Balance Sheet,Oracle Corporation UK Ltd,460002516,"31,450.45",Y
Crown Prosecution Service ,16/11/21,IT non capital software licences,Legal Reference and ICT Licenses,Oracle Corporation UK Ltd,460002516,"157,252.25",
Crown Prosecution Service ,16/11/21,Recoverable VAT control,Balance Sheet,Xerox (UK) Ltd,900214530,"36,823.66",Y
Crown Prosecution Service ,16/11/21,Short term leases from 2 to 12 months: IT and Equipment,Print Contract,Xerox (UK) Ltd,900214530,"184,118.30",
Crown Prosecution Service ,17/11/21,National non domestic rates,Estate and FM: Programme,Government Property Agency London,00000001/12373,"40,320.00",
Crown Prosecution Service ,17/11/21,National non domestic rates,Estate and FM: Programme,Government Property Agency London,00000001/12396,"71,122.50",
Crown Prosecution Service ,17/11/21,National non domestic rates,Estate and FM: Programme,Government Property Agency London,00000001/12399,"98,872.28",
Crown Prosecution Service ,17/11/21,National non domestic rates,Estate and FM: Programme,Government Property Agency London,00000001/13032,"36,408.14",
Crown Prosecution Service ,17/11/21,Crown Court Graduated Fee Scheme,West Midlands Crown Court Unit,6 Kings Bench Walk- Chambers of D Fisher & D Perry,102279 CUR,"78,091.32",Y
Crown Prosecution Service ,17/11/21,IT non capital software licences,DTS Programme Project Cost,Oracle Corporation UK Ltd,460015450,"37,395.07",
Crown Prosecution Service ,17/11/21,Crown Court Graduated Fee Scheme,Mersey Cheshire Crown Court Unit,Exchange Chambers Leeds ,590195-1/NJ,"43,268.64",Y
Crown Prosecution Service ,17/11/21,Professional subscriptions and memberships,Yorkshire and Humberside Area Business Centre,Law Society,INV200618375,"32,234.00",
Crown Prosecution Service ,19/11/21,Crown Court Graduated Fee Scheme,East of England Crown Court,6 Pump Court The Chambers of Mr Stephen Hockman,161370/ST,"46,789.68",Y
Crown Prosecution Service ,19/11/21,Recoverable VAT control,Balance Sheet,Trustmarque Solutions Ltd,2329977,"9,390.48",Y
Crown Prosecution Service ,19/11/21,IT non capital software licences,Legal Reference and ICT Licenses,Trustmarque Solutions Ltd,2329977,"46,952.41",
Crown Prosecution Service ,19/11/21,Crown Court Graduated Fee Scheme,North East Crown Court Unit,New Park Court Chambers Leeds,362923/STKQC,"26,698.20",Y
Crown Prosecution Service ,19/11/21,Crown Court Graduated Fee Scheme,Thames Chiltern Crown Court Unit,6 Kings Bench Walk- Chambers of D Fisher & D Perry,98831 - MBIS,"28,619.94",Y
Crown Prosecution Service ,19/11/21,Crown Court Graduated Fee Scheme,South East RASSO Unit,Lamb Chambers,AP Connor 1COR,"36,123.90",Y
Crown Prosecution Service ,19/11/21,IT non capital software licences,Legal Reference and ICT Licenses,Softcat Plc Marlow,INV03225368,"108,898.81",Y
Crown Prosecution Service ,19/11/21,Professional subscriptions and memberships,North West Area Business Centre,Law Society,INV200613660REKEY,"28,196.00",
Crown Prosecution Service ,22/11/21,Crown Court Very High Cost Cases Full Scheme,SFD London,5 Paper Buildings,111740/BDJ,"26,808.00",Y
Crown Prosecution Service ,22/11/21,Crown Court Graduated Fee Scheme,North West Crown Court Hub,Lincoln House Chambers,246024 TS,"36,335.10",Y
Crown Prosecution Service ,22/11/21,Crown Court Graduated Fee Scheme,Yorks and Humbs CC Legal,New Park Court Chambers Leeds,361855/JPQC,"26,993.10",Y
Crown Prosecution Service ,22/11/21,IT services,DTS Programme Project Cost,WIPRO Holdings London,83067994,"174,885.43",Y
Crown Prosecution Service ,22/11/21,Recoverable VAT control,Balance Sheet,CGI IT UK Ltd,GB014069700,"43,544.27",Y
Crown Prosecution Service ,22/11/21,IT services,DTS Programme Project Cost,CGI IT UK Ltd,GB014069700,"217,721.37",
Crown Prosecution Service ,22/11/21,Recoverable VAT control,Balance Sheet,CGI IT UK Ltd,GB014069701,"116,338.12",Y
Crown Prosecution Service ,22/11/21,IT services,DTS Programme Project Cost,CGI IT UK Ltd,GB014069701,"581,690.60",
Crown Prosecution Service ,22/11/21,Recoverable VAT control,Balance Sheet,CGI IT UK Ltd,GB014069792,"15,138.58",Y
Crown Prosecution Service ,22/11/21,IT services,Apps and Hosting Contract,CGI IT UK Ltd,GB014069792,"75,692.90",
Crown Prosecution Service ,22/11/21,Recoverable VAT control,Balance Sheet,CGI IT UK Ltd,GB014069855,"13,184.40",Y
Crown Prosecution Service ,22/11/21,IT services,Apps and Hosting Contract,CGI IT UK Ltd,GB014069855,"65,922.00",
Crown Prosecution Service ,23/11/21,Lease liability non current lease payments,Balance Sheet,Government Property Agency London,00000001/11643,"44,804.43",
Crown Prosecution Service ,23/11/21,Landlord service charge,Estate and FM: Administration,Government Property Agency London,00000001/13283,"4,124.77",
Crown Prosecution Service ,23/11/21,Landlord service charge,Estate and FM: Programme,Government Property Agency London,00000001/13283,"116,131.04",
Crown Prosecution Service ,23/11/21,Recoverable VAT control,Balance Sheet,Government Property Agency London,00000001/13304,"2,598.50",Y
Crown Prosecution Service ,23/11/21,Landlord service charge,Estate and FM: Programme,Government Property Agency London,00000001/13304,"32,397.61",
Crown Prosecution Service ,23/11/21,Facilities management,Estate and FM: Programme,Government Property Agency London,00000001/13304,"12,992.52",
Crown Prosecution Service ,23/11/21,IT services,Fin System Change and Costings,Oracle Corporation UK Ltd,460017306,"60,758.88",Y
Crown Prosecution Service ,24/11/21,IT services,DTS Programme Project Cost,ICS.AI Ltd Basingstoke,0000000098,"47,265.90",Y
Crown Prosecution Service ,24/11/21,Crown Court Graduated Fee Scheme,London North Crown Court Unit,Foundry Chambers (9-12 Bell Yard),187497DH1,"29,383.50",Y
Crown Prosecution Service ,24/11/21,Other Staff Costs,Finance Operations,Edenred,INV24551396,383.00,
Crown Prosecution Service ,24/11/21,Salary sacrifice suspense,Balance Sheet,Edenred,INV24551396,"31,934.70",
Crown Prosecution Service ,25/11/21,IT services,Service Desk Contract,CGI IT UK Ltd,GB014069133,"83,109.08",
Crown Prosecution Service ,25/11/21,Recoverable VAT control,Balance Sheet,CGI IT UK Ltd,GB014069133,"16,621.82",Y
Crown Prosecution Service ,25/11/21,Crown Court Very High Cost Cases Full Scheme,SFD North,9 Gough Chambers London,GXM377469K,"25,440.00",Y
Crown Prosecution Service ,25/11/21,Professional subscriptions and memberships,East of England Area Business Centre,Law Society,INV200620327REKEY,"27,821.00",
Crown Prosecution Service ,26/11/21,Crown Court Graduated Fee Scheme,North East Crown Court Unit,St Pauls Chambers Leeds,160986 Lee * 2,"28,427.52",Y
Crown Prosecution Service ,26/11/21,Crown Court Graduated Fee Scheme,London South Crown Court Unit,Foundry Chambers (9-12 Bell Yard),188223MS2,"35,101.38",Y
Crown Prosecution Service ,26/11/21,Crown Court Very High Cost Cases Full Scheme,Cymru Wales Complex Casework Unit,9 Park Place Chambers,327133 MC Stage 0c,"30,381.00",Y
Crown Prosecution Service ,26/11/21,Crown Court Graduated Fee Scheme,Yorkshire and Humberside Complex Casework Unit,Park Square Barristers (No 6 and Sovereign merged),458279/KMQC,"63,932.04",Y
Crown Prosecution Service ,26/11/21,Crown Court Graduated Fee Scheme,Yorkshire and Humberside Complex Casework Unit,Park Square Barristers (No 6 and Sovereign merged),458280/KR/LEAD,"31,520.16",Y
Crown Prosecution Service ,26/11/21,Crown Court Graduated Fee Scheme,West Midlands Crown Court Unit,No 5 Fountain Court Chambers,796997/AMU/MANSHA***,"39,498.24",Y
Crown Prosecution Service ,29/11/21,Recoverable VAT control,Balance Sheet,Government Property Agency London,00000001/13243,"55,653.99",Y
Crown Prosecution Service ,29/11/21,Reactive Maintenance,Estate and FM: Programme,Government Property Agency London,00000001/13243,"275,932.53",
Crown Prosecution Service ,29/11/21,Reactive Maintenance,Estate and FM: Administration,Government Property Agency London,00000001/13243,"2,337.47",
Crown Prosecution Service ,29/11/21,Crown Court Graduated Fee Scheme,Special Crime Unit London,2 Hare Court Chambers -Chambers of Orlando Pownall,119063...,"27,421.44",Y
Crown Prosecution Service ,29/11/21,Crown Court Graduated Fee Scheme,Cymru Wales North Crown Court,Linenhall Chambers,301732apo,"33,868.80",Y
Crown Prosecution Service ,29/11/21,IT services,DTS Programme Project Cost,Mobilise Cloud Services Limited London,CPSINV027,"41,827.51",Y
Crown Prosecution Service ,29/11/21,Crown Court Graduated Fee Scheme,London North Complex Casework Unit,5 King's Bench Walk,DRQC 157301,"49,790.81",Y
Crown Prosecution Service ,29/11/21,Recoverable VAT control,Balance Sheet,CGI IT UK Ltd,GB014070227,"10,985.23",Y
Crown Prosecution Service ,29/11/21,IT services,Apps and Hosting Contract,CGI IT UK Ltd,GB014070227,"54,926.14",
Crown Prosecution Service ,29/11/21,IT services,DTS Programme Project Cost,Green Lemon Company Ltd Haywards Heath,GLC_Invoice_2021-11_385,"69,600.00",Y
Crown Prosecution Service ,29/11/21,Other managed/contractor services,DTS Programme Project Cost,Equal Experts London,INV-9531,"152,334.00",Y
Crown Prosecution Service ,29/11/21,Crown Court Graduated Fee Scheme,London North Complex Casework Unit,5 King's Bench Walk,MHO 157301,"26,460.40",Y
Crown Prosecution Service ,30/11/21,National non domestic rates,Estate and FM: Programme,Government Property Agency London,00000001/12371,"64,290.24",
Crown Prosecution Service ,30/11/21,Crown Court Graduated Fee Scheme,East Midlands Complex Casework Unit,36 Bedford Row,193387-SLK,"32,987.16",Y
Crown Prosecution Service ,30/11/21,External legal advice - Civil litigation,Other Corporate Programme Payments,Government Legal Department,499971,"145,220.75",Y
Crown Prosecution Service ,30/11/21,Crown Court Graduated Fee Scheme,West Midlands Crown Court Unit,QEB Hollis Whiteman Chambers,EB 109835 A,"48,807.96",Y
Crown Prosecution Service ,30/11/21,Recoverable VAT control,Balance Sheet,CGI IT UK Ltd,GB014070340,"13,184.40",Y
Crown Prosecution Service ,30/11/21,IT services,Apps and Hosting Contract,CGI IT UK Ltd,GB014070340,"65,922.00",
Crown Prosecution Service ,30/11/21,Recoverable VAT control,Balance Sheet,CGI IT UK Ltd,GB014070341,"13,184.40",Y
Crown Prosecution Service ,30/11/21,IT services,Apps and Hosting Contract,CGI IT UK Ltd,GB014070341,"65,922.00",
Crown Prosecution Service ,30/11/21,Transcriptions and Translation,Other Corporate Programme Payments,AVR Transcription Ltd Bolton,Oct21-35434,"47,494.42",
Crown Prosecution Service ,30/11/21,Recoverable VAT control,Balance Sheet,AVR Transcription Ltd Bolton,Oct21-35434,"9,498.88",Y
